[Event "*** Titled Tuesday Blitz"]
[Site "Chess.com"]
[Date "2020.05.05"]
[Round "8"]
[White "swimmerchess"]
[Black "MaxVavulin"]
[Result "1/2-1/2"]
[WhiteElo "2723"]
[BlackElo "2610"]
[TimeControl "180+1"]
[EndTime "11:36:06 PDT"]
[Termination "Game drawn by agreement"]

1. e4 {[%clk 0:03:00.9]} 1... e5 {[%clk 0:02:59]} 2. Nf3 {[%clk 0:03:00.5]} 2...
Nc6 {[%clk 0:02:58.9]} 3. Bb5 {[%clk 0:02:59.1]} 3... a6 {[%clk 0:02:59.1]} 4.
Ba4 {[%clk 0:02:58.8]} 4... Nge7 {[%clk 0:02:58.9]} 5. c3 {[%clk 0:02:55.4]}
5... g6 {[%clk 0:02:57.8]} 6. d4 {[%clk 0:02:55]} 6... exd4 {[%clk 0:02:57.3]}
7. cxd4 {[%clk 0:02:55.9]} 7... b5 {[%clk 0:02:57.6]} 8. Bb3 {[%clk 0:02:55]}
8... Bg7 {[%clk 0:02:56.7]} 9. d5 {[%clk 0:02:53.3]} 9... Na5 {[%clk 0:02:56.7]}
10. Bd2 {[%clk 0:02:53.1]} 10... c5 {[%clk 0:02:55.3]} 11. d6 {[%clk 0:02:51.4]}
11... Nec6 {[%clk 0:02:54.8]} 12. Bc3 {[%clk 0:02:40.1]} 12... O-O {[%clk
0:02:45.3]} 13. O-O {[%clk 0:02:35.6]} 13... Nxb3 {[%clk 0:02:38.7]} 14. Qxb3
{[%clk 0:02:32.6]} 14... c4 {[%clk 0:02:32.3]} 15. Qc2 {[%clk 0:02:27.7]} 15...
Bb7 {[%clk 0:02:31.9]} 16. a4 {[%clk 0:02:22]} 16... Re8 {[%clk 0:02:23.7]} 17.
Bxg7 {[%clk 0:02:10.2]} 17... Kxg7 {[%clk 0:02:23.3]} 18. Na3 {[%clk 0:02:00.9]}
18... Qf6 {[%clk 0:01:47.1]} 19. axb5 {[%clk 0:01:53]} 19... Nb4 {[%clk
0:01:41.9]} 20. Qxc4 {[%clk 0:01:47]} 20... Rxe4 {[%clk 0:01:40.4]} 21. Qc7
{[%clk 0:01:36.4]} 21... Bd5 {[%clk 0:01:33.6]} 22. Qxd7 {[%clk 0:01:22.3]}
22... Re6 {[%clk 0:01:15.3]} 23. Rfe1 {[%clk 0:00:42.9]} 23... Rd8 {[%clk
0:00:35.5]} 24. Rxe6 {[%clk 0:00:40.9]} 24... Bxe6 {[%clk 0:00:36.1]} 25. Qe7
{[%clk 0:00:30.8]} 25... Qxb2 {[%clk 0:00:35.7]} 26. Rb1 {[%clk 0:00:30.5]}
26... Rc8 {[%clk 0:00:24.9]} 27. h3 {[%clk 0:00:20.3]} 27... Qxa3 {[%clk
0:00:14.4]} 28. d7 {[%clk 0:00:20.2]} 28... Rc1+ {[%clk 0:00:14.2]} 29. Kh2
{[%clk 0:00:16.1]} 29... Bxd7 {[%clk 0:00:12.7]} 30. Rxc1 {[%clk 0:00:15.4]}
30... Qxc1 {[%clk 0:00:11.4]} 31. Qxd7 {[%clk 0:00:15.9]} 31... Qf4+ {[%clk
0:00:10.5]} 32. Kh1 {[%clk 0:00:14.8]} 32... axb5 {[%clk 0:00:09.1]} 33. Qxb5
{[%clk 0:00:15.7]} 33... Qe4 {[%clk 0:00:08.5]} 34. Ng5 {[%clk 0:00:14.6]} 34...
Qe1+ {[%clk 0:00:08.2]} 35. Kh2 {[%clk 0:00:14.6]} 35... h6 {[%clk 0:00:07.9]}
36. Nf3 {[%clk 0:00:13.4]} 36... Qe4 {[%clk 0:00:07.8]} 37. Kg1 {[%clk
0:00:11.9]} 37... Nd3 {[%clk 0:00:07.4]} 38. Qd7 {[%clk 0:00:11.1]} 38... Nf4
{[%clk 0:00:06.5]} 39. Kh2 {[%clk 0:00:10.2]} 39... Ne6 {[%clk 0:00:05.4]} 40.
Qd2 {[%clk 0:00:09.3]} 40... Qf4+ {[%clk 0:00:05]} 41. Qxf4 {[%clk 0:00:09.2]}
41... Nxf4 {[%clk 0:00:05.5]} 42. g3 {[%clk 0:00:10.1]} 42... Nd3 {[%clk
0:00:05.4]} 43. Kg2 {[%clk 0:00:11]} 43... Kf6 {[%clk 0:00:05.6]} 44. h4 {[%clk
0:00:11.1]} 44... Ne5 {[%clk 0:00:05.4]} 45. Nxe5 {[%clk 0:00:11.2]} 45... Kxe5
{[%clk 0:00:05.6]} 46. Kf3 {[%clk 0:00:11.1]} 46... Kf5 {[%clk 0:00:05.4]}
1/2-1/2

[Event "*** Titled Tuesday Blitz"]
[Site "Chess.com"]
[Date "2020.05.05"]
[Round "8"]
[White "BikingBrian"]
[Black "DinaBelenkaya"]
[Result "1-0"]
[WhiteElo "2283"]
[BlackElo "2125"]
[TimeControl "180+1"]
[EndTime "11:36:07 PDT"]
[Termination "BikingBrian won on time"]

1. d4 {[%clk 0:03:00.9]} 1... Nf6 {[%clk 0:02:59.2]} 2. Bg5 {[%clk 0:03:00.5]}
2... Ne4 {[%clk 0:02:56.1]} 3. Bf4 {[%clk 0:03:00.3]} 3... d5 {[%clk 0:02:53.3]}
4. f3 {[%clk 0:03:00.7]} 4... Nd6 {[%clk 0:02:44]} 5. Nc3 {[%clk 0:03:00]} 5...
c6 {[%clk 0:02:42.1]} 6. e4 {[%clk 0:03:00.2]} 6... e6 {[%clk 0:02:34.6]} 7. Bd3
{[%clk 0:02:57.3]} 7... Be7 {[%clk 0:02:34]} 8. Nge2 {[%clk 0:02:56.7]} 8... Bg5
{[%clk 0:02:14.1]} 9. O-O {[%clk 0:02:45.1]} 9... Bxf4 {[%clk 0:01:56.8]} 10.
Nxf4 {[%clk 0:02:46]} 10... O-O {[%clk 0:01:56.3]} 11. Qe1 {[%clk 0:02:38.4]}
11... Qg5 {[%clk 0:01:36.2]} 12. Nh3 {[%clk 0:02:32.9]} 12... Qh6 {[%clk
0:01:33]} 13. f4 {[%clk 0:02:19]} 13... dxe4 {[%clk 0:01:21.3]} 14. Nxe4 {[%clk
0:02:17]} 14... Nxe4 {[%clk 0:01:20.7]} 15. Bxe4 {[%clk 0:02:17.9]} 15... Nd7
{[%clk 0:01:20]} 16. Ng5 {[%clk 0:02:09.4]} 16... Nf6 {[%clk 0:01:19.7]} 17. Bd3
{[%clk 0:02:09.8]} 17... g6 {[%clk 0:01:04.8]} 18. Rf3 {[%clk 0:02:03.4]} 18...
Qg7 {[%clk 0:01:02.4]} 19. c3 {[%clk 0:02:02.4]} 19... Bd7 {[%clk 0:00:53.7]}
20. Ne4 {[%clk 0:02:00.3]} 20... Nxe4 {[%clk 0:00:52.4]} 21. Qxe4 {[%clk
0:02:01.2]} 21... Rac8 {[%clk 0:00:46.1]} 22. Qe5 {[%clk 0:01:55.8]} 22... c5
{[%clk 0:00:43.3]} 23. Qxg7+ {[%clk 0:01:35.9]} 23... Kxg7 {[%clk 0:00:44.2]}
24. dxc5 {[%clk 0:01:34.8]} 24... Rxc5 {[%clk 0:00:44.5]} 25. Be4 {[%clk
0:01:35.2]} 25... Bc6 {[%clk 0:00:36.1]} 26. Bxc6 {[%clk 0:01:34.7]} 26... Rxc6
{[%clk 0:00:36.7]} 27. Rd1 {[%clk 0:01:33.9]} 27... Rfc8 {[%clk 0:00:35.2]} 28.
Rd7 {[%clk 0:01:31.6]} 28... R8c7 {[%clk 0:00:35.3]} 29. Rfd3 {[%clk 0:01:31.7]}
29... Kf6 {[%clk 0:00:35.2]} 30. Kf2 {[%clk 0:01:28.2]} 30... h5 {[%clk
0:00:35.1]} 31. Kf3 {[%clk 0:01:24.8]} 31... Kf5 {[%clk 0:00:29.6]} 32. g3
{[%clk 0:01:23.5]} 32... f6 {[%clk 0:00:15]} 33. h3 {[%clk 0:01:22.7]} 33... e5
{[%clk 0:00:11.3]} 34. g4+ {[%clk 0:01:12.9]} 34... Ke6 {[%clk 0:00:10.7]} 35.
Rxc7 {[%clk 0:01:10.7]} 35... hxg4+ {[%clk 0:00:09.9]} 36. hxg4 {[%clk
0:01:10.3]} 36... Rxc7 {[%clk 0:00:10.8]} 37. fxe5 {[%clk 0:01:07.3]} 37... fxe5
{[%clk 0:00:11.7]} 38. Rd8 {[%clk 0:01:01.1]} 38... Rf7+ {[%clk 0:00:11.3]} 39.
Kg3 {[%clk 0:00:59.3]} 39... e4 {[%clk 0:00:10.6]} 40. c4 {[%clk 0:00:52.6]}
40... Rf3+ {[%clk 0:00:09.6]} 41. Kg2 {[%clk 0:00:52.3]} 41... Ke5 {[%clk
0:00:09.7]} 42. Re8+ {[%clk 0:00:44.8]} 42... Kd4 {[%clk 0:00:09.2]} 43. c5
{[%clk 0:00:45.3]} 43... Ke3 {[%clk 0:00:07.6]} 44. b4 {[%clk 0:00:38.8]} 44...
Rf2+ {[%clk 0:00:06.5]} 45. Kg3 {[%clk 0:00:36.3]} 45... Rxa2 {[%clk 0:00:07.1]}
46. b5 {[%clk 0:00:35.4]} 46... Rc2 {[%clk 0:00:06.4]} 47. Re7 {[%clk
0:00:30.6]} 47... Rxc5 {[%clk 0:00:04.8]} 48. Rxb7 {[%clk 0:00:30.8]} 48... Ke2
{[%clk 0:00:03.4]} 49. Rxa7 {[%clk 0:00:29.6]} 49... Rxb5 {[%clk 0:00:03.2]} 50.
Ra6 {[%clk 0:00:27.3]} 50... g5 {[%clk 0:00:02.4]} 51. Ra2+ {[%clk 0:00:24.6]}
51... Ke3 {[%clk 0:00:02.5]} 52. Ra3+ {[%clk 0:00:24.4]} 52... Kd2 {[%clk
0:00:02.8]} 53. Ra2+ {[%clk 0:00:23.8]} 53... Kd3 {[%clk 0:00:03.1]} 54. Ra3+
{[%clk 0:00:23.8]} 54... Kd4 {[%clk 0:00:02.4]} 55. Ra4+ {[%clk 0:00:23.4]}
55... Kd3 {[%clk 0:00:02]} 56. Ra3+ {[%clk 0:00:23.4]} 56... Kc2 {[%clk
0:00:01.8]} 57. Re3 {[%clk 0:00:22.9]} 1-0

[Event "*** Titled Tuesday Blitz"]
[Site "Chess.com"]
[Date "2020.05.05"]
[Round "8"]
[White "neurisdr"]
[Black "Shoytan"]
[Result "0-1"]
[WhiteElo "2766"]
[BlackElo "2600"]
[TimeControl "180+1"]
[EndTime "11:36:09 PDT"]
[Termination "Shoytan won by resignation"]

1. e4 {[%clk 0:03:00.9]} 1... e6 {[%clk 0:02:59.2]} 2. d4 {[%clk 0:02:59.9]}
2... d5 {[%clk 0:02:59.6]} 3. Nd2 {[%clk 0:02:59.6]} 3... c5 {[%clk 0:02:59.3]}
4. Ngf3 {[%clk 0:02:59.1]} 4... cxd4 {[%clk 0:02:59.2]} 5. Nxd4 {[%clk
0:02:58.4]} 5... Nf6 {[%clk 0:02:59.6]} 6. exd5 {[%clk 0:02:57.8]} 6... Qxd5
{[%clk 0:02:58.7]} 7. Nb5 {[%clk 0:02:56.7]} 7... Qd8 {[%clk 0:02:54.1]} 8. Qf3
{[%clk 0:02:47.1]} 8... Na6 {[%clk 0:02:43]} 9. c3 {[%clk 0:02:42.4]} 9... Be7
{[%clk 0:02:39.3]} 10. Nc4 {[%clk 0:02:41.7]} 10... O-O {[%clk 0:02:34.1]} 11.
Qg3 {[%clk 0:02:39.4]} 11... Bd7 {[%clk 0:02:29.3]} 12. a4 {[%clk 0:02:37.7]}
12... Ne4 {[%clk 0:02:24.4]} 13. Qf3 {[%clk 0:02:31.6]} 13... Bc6 {[%clk
0:02:06]} 14. Nd4 {[%clk 0:02:10.4]} 14... Bd5 {[%clk 0:02:03.7]} 15. Qh3 {[%clk
0:01:59.1]} 15... Bh4 {[%clk 0:01:34.2]} 16. g3 {[%clk 0:01:56.6]} 16... Bf6
{[%clk 0:01:33.1]} 17. Bd3 {[%clk 0:01:40.6]} 17... Nac5 {[%clk 0:01:25.8]} 18.
Be2 {[%clk 0:01:22.8]} 18... Nxf2 {[%clk 0:01:18.5]} 19. Kxf2 {[%clk 0:01:17]}
19... Bxh1 {[%clk 0:01:18.8]} 20. Be3 {[%clk 0:01:15.3]} 20... Be4 {[%clk
0:01:14.4]} 21. Rd1 {[%clk 0:01:12.5]} 21... Qc7 {[%clk 0:01:09.7]} 22. Nb5
{[%clk 0:01:11.5]} 22... Qe7 {[%clk 0:01:03.5]} 23. Ncd6 {[%clk 0:01:09.4]}
23... Bf5 {[%clk 0:00:55.7]} 24. Nxf5 {[%clk 0:00:55.2]} 24... Ne4+ {[%clk
0:00:55.9]} 25. Kf1 {[%clk 0:00:51.4]} 25... exf5 {[%clk 0:00:56.8]} 26. Qxf5
{[%clk 0:00:50.6]} 26... Nxg3+ {[%clk 0:00:55.2]} 27. hxg3 {[%clk 0:00:49.3]}
27... Qxe3 {[%clk 0:00:55.7]} 28. Bd3 {[%clk 0:00:44.4]} 28... Qh6 {[%clk
0:00:53.3]} 29. Nd6 {[%clk 0:00:39.2]} 29... Rad8 {[%clk 0:00:37.1]} 30. Bc2
{[%clk 0:00:17.6]} 30... Be7 {[%clk 0:00:24.5]} 31. Ne4 {[%clk 0:00:15.2]} 31...
Qh1+ {[%clk 0:00:21.9]} 32. Ke2 {[%clk 0:00:14.4]} 32... Qh2+ {[%clk 0:00:20.8]}
33. Nf2 {[%clk 0:00:14.5]} 33... Rxd1 {[%clk 0:00:20]} 34. Bxd1 {[%clk
0:00:15.4]} 34... Bf6 {[%clk 0:00:18.3]} 35. Kf1 {[%clk 0:00:15.6]} 35... Re8
{[%clk 0:00:17.5]} 36. g4 {[%clk 0:00:15]} 36... Qe5 {[%clk 0:00:17]} 37. Qf3
{[%clk 0:00:14]} 37... Bh4 {[%clk 0:00:16.8]} 38. Bb3 {[%clk 0:00:13.3]} 38...
Qe1+ {[%clk 0:00:16.6]} 39. Kg2 {[%clk 0:00:13.4]} 39... Qxf2+ {[%clk
0:00:14.4]} 40. Qxf2 {[%clk 0:00:13.5]} 40... Bxf2 {[%clk 0:00:15.3]} 41. Kxf2
{[%clk 0:00:14.2]} 41... Re5 {[%clk 0:00:15.4]} 42. Kf3 {[%clk 0:00:13.9]} 42...
b6 {[%clk 0:00:15.8]} 43. Bc4 {[%clk 0:00:14]} 43... Rc5 {[%clk 0:00:16.2]} 44.
Bd3 {[%clk 0:00:13.8]} 44... Kf8 {[%clk 0:00:16.6]} 45. Ke4 {[%clk 0:00:13.9]}
45... g6 {[%clk 0:00:17.1]} 46. Kd4 {[%clk 0:00:13.2]} 46... h5 {[%clk
0:00:17.4]} 47. Be2 {[%clk 0:00:13.7]} 47... h4 {[%clk 0:00:16.6]} 48. Bf3
{[%clk 0:00:13.7]} 48... h3 {[%clk 0:00:15.6]} 49. b4 {[%clk 0:00:14.1]} 49...
Rg5 {[%clk 0:00:15.3]} 50. c4 {[%clk 0:00:14.5]} 50... f5 {[%clk 0:00:15.4]} 51.
gxf5 {[%clk 0:00:13.9]} 51... Rxf5 {[%clk 0:00:15.3]} 52. Be4 {[%clk 0:00:13.8]}
52... Rf4 {[%clk 0:00:15.3]} 53. Ke5 {[%clk 0:00:14]} 53... Rxe4+ {[%clk
0:00:15.6]} 54. Kxe4 {[%clk 0:00:13.8]} 54... h2 {[%clk 0:00:16.5]} 0-1

[Event "*** Titled Tuesday Blitz"]
[Site "Chess.com"]
[Date "2020.05.05"]
[Round "8"]
[White "Usurpov"]
[Black "DanielTitichoca"]
[Result "0-1"]
[WhiteElo "2441"]
[BlackElo "2309"]
[TimeControl "180+1"]
[EndTime "11:36:09 PDT"]
[Termination "DanielTitichoca won on time"]

1. e4 {[%clk 0:03:00.9]} 1... c5 {[%clk 0:02:59.7]} 2. Nf3 {[%clk 0:03:00.6]}
2... d6 {[%clk 0:03:00.6]} 3. Bb5+ {[%clk 0:02:58.5]} 3... Nc6 {[%clk
0:02:55.4]} 4. O-O {[%clk 0:02:57.4]} 4... Nf6 {[%clk 0:02:45]} 5. Re1 {[%clk
0:02:55]} 5... g6 {[%clk 0:02:31.9]} 6. c3 {[%clk 0:02:51.2]} 6... Bg7 {[%clk
0:02:29.9]} 7. d4 {[%clk 0:02:51.4]} 7... cxd4 {[%clk 0:02:27.5]} 8. cxd4 {[%clk
0:02:52.3]} 8... O-O {[%clk 0:02:24.6]} 9. Nc3 {[%clk 0:02:41.5]} 9... Bg4
{[%clk 0:02:22.2]} 10. Be3 {[%clk 0:02:14.7]} 10... Nd7 {[%clk 0:02:19.5]} 11.
Be2 {[%clk 0:02:11.7]} 11... Rc8 {[%clk 0:02:12.6]} 12. Rc1 {[%clk 0:02:03.2]}
12... a6 {[%clk 0:02:10.8]} 13. Qd2 {[%clk 0:02:00.3]} 13... b5 {[%clk
0:02:09.8]} 14. h3 {[%clk 0:01:33.8]} 14... Bxf3 {[%clk 0:02:08.9]} 15. Bxf3
{[%clk 0:01:34.7]} 15... e6 {[%clk 0:02:07]} 16. g3 {[%clk 0:01:25.2]} 16... Nb6
{[%clk 0:02:00.8]} 17. b3 {[%clk 0:01:24.6]} 17... e5 {[%clk 0:01:50.5]} 18. d5
{[%clk 0:01:19.6]} 18... Nd4 {[%clk 0:01:50.4]} 19. Bxd4 {[%clk 0:01:10.7]}
19... exd4 {[%clk 0:01:51.3]} 20. Ne2 {[%clk 0:01:10.3]} 20... Qf6 {[%clk
0:01:48.3]} 21. Bg2 {[%clk 0:01:09.9]} 21... Rc5 {[%clk 0:01:29.5]} 22. Qa5
{[%clk 0:00:55.8]} 22... Nd7 {[%clk 0:01:05.5]} 23. Qd2 {[%clk 0:00:37.2]} 23...
Rfc8 {[%clk 0:01:03.4]} 24. f4 {[%clk 0:00:16.3]} 24... h5 {[%clk 0:00:40.8]}
25. Kh2 {[%clk 0:00:15.3]} 25... Nb6 {[%clk 0:00:32.3]} 26. h4 {[%clk
0:00:12.1]} 26... Qe7 {[%clk 0:00:23]} 27. Rcd1 {[%clk 0:00:05.2]} 27... Rc2
{[%clk 0:00:22]} 28. Qd3 {[%clk 0:00:05.5]} 28... Rxa2 {[%clk 0:00:15]} 29. Rd2
{[%clk 0:00:05.1]} 29... Rxd2 {[%clk 0:00:13.5]} 30. Qxd2 {[%clk 0:00:06]} 30...
Qc7 {[%clk 0:00:13.6]} 31. Nxd4 {[%clk 0:00:05.5]} 31... Qc3 {[%clk 0:00:14]}
32. Qxc3 {[%clk 0:00:05]} 32... Rxc3 {[%clk 0:00:14.9]} 33. Nc6 {[%clk
0:00:04.8]} 33... Rxb3 {[%clk 0:00:14.8]} 34. e5 {[%clk 0:00:05.2]} 34... dxe5
{[%clk 0:00:13.8]} 35. fxe5 {[%clk 0:00:05.6]} 35... Rb2 {[%clk 0:00:13.9]} 36.
Kg1 {[%clk 0:00:05.6]} 36... b4 {[%clk 0:00:12.3]} 37. d6 {[%clk 0:00:04.9]}
37... a5 {[%clk 0:00:12]} 38. Nd4 {[%clk 0:00:04]} 38... a4 {[%clk 0:00:11.6]}
39. Nb5 {[%clk 0:00:03.6]} 39... a3 {[%clk 0:00:11.7]} 40. e6 {[%clk 0:00:03.6]}
40... fxe6 {[%clk 0:00:10.3]} 41. Bh3 {[%clk 0:00:04.2]} 41... a2 {[%clk
0:00:10]} 42. Bxe6+ {[%clk 0:00:04.3]} 42... Kh7 {[%clk 0:00:10.5]} 43. Bxa2
{[%clk 0:00:03.7]} 43... Rxa2 {[%clk 0:00:11.4]} 44. Re7 {[%clk 0:00:03.8]}
44... Rd2 {[%clk 0:00:11.3]} 45. Rb7 {[%clk 0:00:02.1]} 45... Nc4 {[%clk
0:00:10]} 46. d7 {[%clk 0:00:02.3]} 46... b3 {[%clk 0:00:10.5]} 0-1

[Event "*** Titled Tuesday Blitz"]
[Site "Chess.com"]
[Date "2020.05.05"]
[Round "8"]
[White "yamalchess"]
[Black "UmutErdemGunduz"]
[Result "1-0"]
[WhiteElo "2548"]
[BlackElo "2409"]
[TimeControl "180+1"]
[EndTime "11:36:10 PDT"]
[Termination "yamalchess won by resignation"]

1. d4 {[%clk 0:03:00.9]} 1... Nf6 {[%clk 0:02:59.5]} 2. c4 {[%clk 0:03:00.9]}
2... e6 {[%clk 0:02:58.6]} 3. Nc3 {[%clk 0:03:01.2]} 3... c5 {[%clk 0:02:58.9]}
4. d5 {[%clk 0:02:59.7]} 4... exd5 {[%clk 0:02:59.4]} 5. cxd5 {[%clk 0:02:59.9]}
5... d6 {[%clk 0:03:00]} 6. e4 {[%clk 0:03:00]} 6... g6 {[%clk 0:03:00.5]} 7.
Nf3 {[%clk 0:02:59.7]} 7... Bg7 {[%clk 0:03:00.3]} 8. h3 {[%clk 0:02:59.9]} 8...
O-O {[%clk 0:02:59.8]} 9. Bd3 {[%clk 0:02:59.2]} 9... b5 {[%clk 0:03:00.3]} 10.
Bxb5 {[%clk 0:02:58.3]} 10... Qa5 {[%clk 0:02:53.1]} 11. Qa4 {[%clk 0:02:48.2]}
11... Qb6 {[%clk 0:02:39.4]} 12. O-O {[%clk 0:02:45.5]} 12... Na6 {[%clk
0:02:34.3]} 13. Re1 {[%clk 0:02:39.4]} 13... Nc7 {[%clk 0:02:25.2]} 14. Bc6
{[%clk 0:02:33.1]} 14... Rb8 {[%clk 0:02:16.6]} 15. Bf4 {[%clk 0:02:26.5]} 15...
Nfe8 {[%clk 0:02:04.5]} 16. e5 {[%clk 0:02:16.5]} 16... dxe5 {[%clk 0:01:38.5]}
17. Nxe5 {[%clk 0:02:10.1]} 17... Qxb2 {[%clk 0:01:35.7]} 18. Rac1 {[%clk
0:01:53.9]} 18... Rb4 {[%clk 0:01:32.9]} 19. Qxa7 {[%clk 0:01:31.5]} 19... Rxf4
{[%clk 0:01:30.9]} 20. Nd3 {[%clk 0:01:31.2]} 20... Bxc3 {[%clk 0:00:44.1]} 21.
Nxb2 {[%clk 0:01:29.5]} 21... Bxb2 {[%clk 0:00:45]} 22. Rb1 {[%clk 0:01:09.9]}
22... Bd4 {[%clk 0:00:43.3]} 23. Re2 {[%clk 0:01:06.4]} 23... Ba6 {[%clk
0:00:41.4]} 24. Rxe8 {[%clk 0:00:57.8]} 24... Nxe8 {[%clk 0:00:37]} 25. Qxa6
{[%clk 0:00:56.9]} 25... Rxf2 {[%clk 0:00:34.1]} 26. Kh1 {[%clk 0:00:55.4]}
26... Nd6 {[%clk 0:00:34.3]} 27. Rf1 {[%clk 0:00:39.7]} 27... Rxf1+ {[%clk
0:00:28.4]} 28. Qxf1 {[%clk 0:00:38.3]} 28... Ne4 {[%clk 0:00:26.8]} 29. Qf4
{[%clk 0:00:32.3]} 29... Nf2+ {[%clk 0:00:15.8]} 30. Kh2 {[%clk 0:00:31.8]}
30... Nd3 {[%clk 0:00:15.7]} 31. Qe4 {[%clk 0:00:27.5]} 31... Ne5 {[%clk
0:00:09.4]} 32. d6 {[%clk 0:00:23.6]} 32... Rd8 {[%clk 0:00:07.9]} 33. d7 {[%clk
0:00:21.5]} 33... Kf8 {[%clk 0:00:05.8]} 34. Qd5 {[%clk 0:00:20.5]} 34... Ke7
{[%clk 0:00:05.5]} 35. Bb5 {[%clk 0:00:20.6]} 35... f5 {[%clk 0:00:04.8]} 36. a4
{[%clk 0:00:20.6]} 36... Nf7 {[%clk 0:00:04.9]} 37. a5 {[%clk 0:00:20]} 37...
Be5+ {[%clk 0:00:04.5]} 38. g3 {[%clk 0:00:19.1]} 38... Bd6 {[%clk 0:00:05.4]}
39. a6 {[%clk 0:00:18.4]} 39... Ng5 {[%clk 0:00:03.3]} 40. a7 {[%clk 0:00:17.7]}
40... f4 {[%clk 0:00:03.3]} 41. a8=Q {[%clk 0:00:15.8]} 41... fxg3+ {[%clk
0:00:03.2]} 42. Kg2 {[%clk 0:00:15.7]} 42... Ne6 {[%clk 0:00:02.5]} 43. Qac6
{[%clk 0:00:12.6]} 43... Rf8 {[%clk 0:00:01.5]} 1-0

[Event "*** Titled Tuesday Blitz"]
[Site "Chess.com"]
[Date "2020.05.05"]
[Round "8"]
[White "alexsergeyev"]
[Black "Kimster98"]
[Result "0-1"]
[WhiteElo "2389"]
[BlackElo "2527"]
[TimeControl "180+1"]
[EndTime "11:36:10 PDT"]
[Termination "Kimster98 won on time"]

1. c4 {[%clk 0:03:00.9]} 1... e6 {[%clk 0:03:00]} 2. Nc3 {[%clk 0:02:58.1]} 2...
d5 {[%clk 0:02:58.2]} 3. d4 {[%clk 0:02:58.1]} 3... Bb4 {[%clk 0:02:58]} 4. cxd5
{[%clk 0:02:57.1]} 4... exd5 {[%clk 0:02:56.6]} 5. Qc2 {[%clk 0:02:56.3]} 5...
Ne7 {[%clk 0:02:48.1]} 6. e3 {[%clk 0:02:54.3]} 6... Bf5 {[%clk 0:02:44.6]} 7.
Bd3 {[%clk 0:02:53.6]} 7... Bxd3 {[%clk 0:02:44.2]} 8. Qxd3 {[%clk 0:02:53.5]}
8... c6 {[%clk 0:02:44.1]} 9. Ne2 {[%clk 0:02:53.4]} 9... Nd7 {[%clk 0:02:41.5]}
10. Bd2 {[%clk 0:02:51.2]} 10... Nf6 {[%clk 0:02:41.2]} 11. O-O-O {[%clk
0:02:44]} 11... Qd7 {[%clk 0:02:39.4]} 12. Kb1 {[%clk 0:02:43.7]} 12... Qf5
{[%clk 0:02:38.9]} 13. Qxf5 {[%clk 0:02:38.6]} 13... Nxf5 {[%clk 0:02:39.8]} 14.
f3 {[%clk 0:02:29.2]} 14... O-O {[%clk 0:02:31.5]} 15. a3 {[%clk 0:02:19.2]}
15... Bxc3 {[%clk 0:02:30.1]} 16. Nxc3 {[%clk 0:02:18]} 16... Rfe8 {[%clk
0:02:30.4]} 17. Rhe1 {[%clk 0:02:16.4]} 17... Re6 {[%clk 0:02:29.5]} 18. Kc2
{[%clk 0:02:15.1]} 18... Rae8 {[%clk 0:02:27.6]} 19. Kd3 {[%clk 0:02:15]} 19...
Nd6 {[%clk 0:02:27]} 20. b3 {[%clk 0:02:11.6]} 20... h5 {[%clk 0:02:25]} 21. Na4
{[%clk 0:02:10]} 21... Nf5 {[%clk 0:02:17.1]} 22. Nc5 {[%clk 0:01:56]} 22...
R6e7 {[%clk 0:02:17.2]} 23. e4 {[%clk 0:01:50.1]} 23... dxe4+ {[%clk 0:01:56.5]}
24. fxe4 {[%clk 0:01:48.8]} 24... b6 {[%clk 0:01:56.7]} 25. exf5 {[%clk
0:01:41.3]} 25... bxc5 {[%clk 0:01:55.7]} 26. Rxe7 {[%clk 0:01:35.9]} 26... Rxe7
{[%clk 0:01:56.6]} 27. dxc5 {[%clk 0:01:25]} 27... Rd7+ {[%clk 0:01:54.9]} 28.
Kc2 {[%clk 0:01:23.9]} 28... Rd5 {[%clk 0:01:54]} 29. b4 {[%clk 0:01:19.1]}
29... Rxf5 {[%clk 0:01:53.4]} 30. Be3 {[%clk 0:01:12.6]} 30... Nd5 {[%clk
0:01:49.9]} 31. Kd3 {[%clk 0:01:09.7]} 31... a6 {[%clk 0:01:43.3]} 32. Rd2
{[%clk 0:00:55.7]} 32... Re5 {[%clk 0:01:39.8]} 33. Bd4 {[%clk 0:00:49.3]} 33...
Re1 {[%clk 0:01:38.7]} 34. Rf2 {[%clk 0:00:35.9]} 34... f6 {[%clk 0:01:36.1]}
35. Kc4 {[%clk 0:00:20.2]} 35... Kf7 {[%clk 0:01:23.7]} 36. a4 {[%clk
0:00:17.1]} 36... Rb1 {[%clk 0:01:16.8]} 37. Rb2 {[%clk 0:00:15.7]} 37... Ne3+
{[%clk 0:00:59.7]} 38. Kb3 {[%clk 0:00:12.5]} 38... Rxb2+ {[%clk 0:00:59.1]} 39.
Bxb2 {[%clk 0:00:09.2]} 39... Nxg2 {[%clk 0:01:00]} 40. b5 {[%clk 0:00:09.6]}
40... cxb5 {[%clk 0:00:59.4]} 41. axb5 {[%clk 0:00:09.7]} 41... axb5 {[%clk
0:01:00.3]} 42. Kb4 {[%clk 0:00:10.1]} 42... Ke6 {[%clk 0:00:59]} 43. Kxb5
{[%clk 0:00:10.3]} 43... Kd7 {[%clk 0:00:59.3]} 44. Kb6 {[%clk 0:00:10.6]} 44...
Kc8 {[%clk 0:00:57.3]} 45. Kc6 {[%clk 0:00:10.7]} 45... Ne3 {[%clk 0:00:52.7]}
46. Bc1 {[%clk 0:00:08.4]} 46... Ng4 {[%clk 0:00:50.8]} 47. h4 {[%clk
0:00:06.5]} 47... Ne5+ {[%clk 0:00:50.8]} 48. Kd6 {[%clk 0:00:05.5]} 48... Nf3
{[%clk 0:00:51.7]} 49. Ke6 {[%clk 0:00:03.4]} 49... Nxh4 {[%clk 0:00:49.9]} 50.
Kf7 {[%clk 0:00:03.4]} 50... Nf5 {[%clk 0:00:35]} 51. Kg6 {[%clk 0:00:02.8]}
51... Ng3 {[%clk 0:00:34.9]} 0-1